[Event "Early-Titled-Tuesday-Blitz-April-16-2024"]
[Site "Chess.com"]
[Date "2024.04.16"]
[Round "8"]
[White "Felix-Rose"]
[Black "mapleaff"]
[Result "0-1"]
[WhiteElo "2181"]
[BlackElo "2270"]
[TimeControl "180+1"]
[EndTime "9:32:30 PDT"]
[Termination "mapleaff won by resignation"]

1. d4 {[%clk 0:02:59.7]} 1... d5 {[%clk 0:02:59]} 2. c4 {[%clk 0:02:59.5]} 2...
e6 {[%clk 0:02:59.3]} 3. Nc3 {[%clk 0:02:59.4]} 3... c5 {[%clk 0:02:55.4]} 4.
cxd5 {[%clk 0:02:58.9]} 4... exd5 {[%clk 0:02:55.7]} 5. Nf3 {[%clk 0:02:58.8]}
5... Nc6 {[%clk 0:02:56]} 6. g3 {[%clk 0:02:58]} 6... Nf6 {[%clk 0:02:55.9]} 7.
Bg2 {[%clk 0:02:58.5]} 7... cxd4 {[%clk 0:02:56.4]} 8. Nxd4 {[%clk 0:02:58.7]}
8... Bc5 {[%clk 0:02:57]} 9. Be3 {[%clk 0:02:54.1]} 9... Qb6 {[%clk 0:02:55.6]}
10. Nxc6 {[%clk 0:02:38.9]} 10... Bxe3 {[%clk 0:02:47.3]} 11. fxe3 {[%clk
0:02:29.6]} 11... bxc6 {[%clk 0:02:43.6]} 12. Qd2 {[%clk 0:02:16.9]} 12... O-O
{[%clk 0:02:42.7]} 13. O-O-O {[%clk 0:02:15.2]} 13... Bf5 {[%clk 0:02:21.8]} 14.
Qd4 {[%clk 0:02:13.5]} 14... Rab8 {[%clk 0:01:57.2]} 15. Qxb6 {[%clk 0:02:11]}
15... axb6 {[%clk 0:01:58.1]} 16. e4 {[%clk 0:02:08.8]} 16... Nxe4 {[%clk
0:01:53.1]} 17. Nxe4 {[%clk 0:02:02.2]} 17... Bxe4 {[%clk 0:01:54]} 18. Bxe4
{[%clk 0:02:02.5]} 18... dxe4 {[%clk 0:01:54.6]} 19. Rd6 {[%clk 0:02:03]} 19...
Rbc8 {[%clk 0:01:50.7]} 20. Rhd1 {[%clk 0:02:01.3]} 20... f5 {[%clk 0:01:45.1]}
21. Rd7 {[%clk 0:02:00.9]} 21... Rf7 {[%clk 0:01:43.1]} 22. R7d6 {[%clk
0:01:51.2]} 22... g5 {[%clk 0:01:34.6]} 23. Rh6 {[%clk 0:01:40.1]} 23... f4
{[%clk 0:01:10.7]} 24. Re6 {[%clk 0:01:27.6]} 24... e3 {[%clk 0:00:52.7]} 25. h4
{[%clk 0:01:19.6]} 25... fxg3 {[%clk 0:00:42.8]} 26. hxg5 {[%clk 0:01:12.2]}
26... Rf5 {[%clk 0:00:39.9]} 27. Rxe3 {[%clk 0:01:10.3]} 27... Rxg5 {[%clk
0:00:40]} 28. Rg1 {[%clk 0:01:10.9]} 28... h5 {[%clk 0:00:32.4]} 29. Rexg3
{[%clk 0:01:09.7]} 29... Rxg3 {[%clk 0:00:33]} 30. Rxg3+ {[%clk 0:01:10.2]}
30... Kh7 {[%clk 0:00:32.6]} 31. e4 {[%clk 0:01:07.9]} 31... Re8 {[%clk
0:00:31]} 32. Re3 {[%clk 0:01:07]} 32... Kg6 {[%clk 0:00:31]} 33. Kd2 {[%clk
0:01:06.6]} 33... Kg5 {[%clk 0:00:31.2]} 34. Rg3+ {[%clk 0:00:59.6]} 34... Kf4
{[%clk 0:00:29.8]} 35. Rh3 {[%clk 0:01:00.2]} 35... Kg4 {[%clk 0:00:28.9]} 36.
Re3 {[%clk 0:00:59.1]} 36... h4 {[%clk 0:00:29.1]} 37. e5 {[%clk 0:00:58.8]}
37... h3 {[%clk 0:00:28]} 38. e6 {[%clk 0:00:57.5]} 38... h2 {[%clk 0:00:27]}
39. Re4+ {[%clk 0:00:55.4]} 39... Kg3 {[%clk 0:00:25.6]} 40. Re3+ {[%clk
0:00:55.6]} 40... Kg4 {[%clk 0:00:20.4]} 41. Re4+ {[%clk 0:00:53.4]} 41... Kg5
{[%clk 0:00:19.7]} 42. Re5+ {[%clk 0:00:49.2]} 42... Kf4 {[%clk 0:00:12.9]} 43.
Rh5 {[%clk 0:00:48.9]} 43... Kg3 {[%clk 0:00:13.4]} 44. Rg5+ {[%clk 0:00:48.8]}
44... Kf2 {[%clk 0:00:12.8]} 45. Rh5 {[%clk 0:00:47.8]} 45... Kg2 {[%clk
0:00:12.6]} 46. Rg5+ {[%clk 0:00:48]} 46... Kf1 {[%clk 0:00:10]} 47. Rh5 {[%clk
0:00:47.6]} 47... Kg1 {[%clk 0:00:10.2]} 48. Rg5+ {[%clk 0:00:48.1]} 48... Kf2
{[%clk 0:00:10]} 49. Rh5 {[%clk 0:00:48.4]} 49... Kg3 {[%clk 0:00:09.6]} 50.
Rg5+ {[%clk 0:00:45.2]} 50... Kh4 {[%clk 0:00:09.9]} 51. Rg7 {[%clk 0:00:45.5]}
51... Rxe6 {[%clk 0:00:08.4]} 52. Rh7+ {[%clk 0:00:45.5]} 52... Kg3 {[%clk
0:00:09]} 53. a4 {[%clk 0:00:38.1]} 53... Rg6 {[%clk 0:00:06.1]} 54. b4 {[%clk
0:00:36.2]} 54... Kg2 {[%clk 0:00:06.4]} 55. Kc3 {[%clk 0:00:35.8]} 55... h1=Q
{[%clk 0:00:06.4]} 56. Rxh1 {[%clk 0:00:35.3]} 56... Kxh1 {[%clk 0:00:06.9]} 57.
a5 {[%clk 0:00:35.2]} 57... bxa5 {[%clk 0:00:06.8]} 58. bxa5 {[%clk 0:00:36.1]}
58... Rg5 {[%clk 0:00:06.1]} 59. Kb4 {[%clk 0:00:33.7]} 59... Rb5+ {[%clk
0:00:06.5]} 60. Ka4 {[%clk 0:00:34.2]} 60... Rb8 {[%clk 0:00:06.9]} 61. a6
{[%clk 0:00:34.6]} 61... c5 {[%clk 0:00:07.5]} 62. Ka5 {[%clk 0:00:34.9]} 62...
c4 {[%clk 0:00:07.7]} 63. a7 {[%clk 0:00:34.9]} 63... Ra8 {[%clk 0:00:07.8]} 64.
Kb4 {[%clk 0:00:35.4]} 64... Rxa7 {[%clk 0:00:08.1]} 65. Kxc4 {[%clk 0:00:36.3]}
65... Rd7 {[%clk 0:00:08.7]} 0-1

[Event "Early-Titled-Tuesday-Blitz-April-16-2024"]
[Site "Chess.com"]
[Date "2024.04.16"]
[Round "8"]
[White "IndianSchoolOfSuffering"]
[Black "Vse_po_kaify"]
[Result "1-0"]
[WhiteElo "2442"]
[BlackElo "2589"]
[TimeControl "180+1"]
[EndTime "9:32:33 PDT"]
[Termination "IndianSchoolOfSuffering won by resignation"]

1. Nf3 {[%clk 0:03:00.9]} 1... c5 {[%clk 0:02:59.6]} 2. c4 {[%clk 0:02:59.4]}
2... Nc6 {[%clk 0:02:59.2]} 3. g3 {[%clk 0:02:58.4]} 3... e5 {[%clk 0:02:58.8]}
4. Bg2 {[%clk 0:02:57.7]} 4... g6 {[%clk 0:02:59.2]} 5. Nc3 {[%clk 0:02:55.8]}
5... Bg7 {[%clk 0:02:59.7]} 6. d3 {[%clk 0:02:55.8]} 6... Nge7 {[%clk
0:02:59.7]} 7. Nd2 {[%clk 0:02:56]} 7... d6 {[%clk 0:02:58.9]} 8. Nf1 {[%clk
0:02:55.7]} 8... O-O {[%clk 0:02:58.8]} 9. Ne3 {[%clk 0:02:55.6]} 9... f5 {[%clk
0:02:59.5]} 10. Ned5 {[%clk 0:02:54.4]} 10... h6 {[%clk 0:02:59.1]} 11. O-O
{[%clk 0:02:52.8]} 11... Be6 {[%clk 0:02:59.2]} 12. Rb1 {[%clk 0:02:51.5]} 12...
Rb8 {[%clk 0:02:50.7]} 13. a3 {[%clk 0:02:51.1]} 13... g5 {[%clk 0:02:49.2]} 14.
f4 {[%clk 0:02:45.4]} 14... gxf4 {[%clk 0:02:44.3]} 15. gxf4 {[%clk 0:02:44]}
15... Kh7 {[%clk 0:02:43.7]} 16. Kh1 {[%clk 0:02:42.2]} 16... Ng6 {[%clk
0:02:33]} 17. b4 {[%clk 0:02:23.4]} 17... exf4 {[%clk 0:02:06]} 18. Bxf4 {[%clk
0:01:59.6]} 18... Bxc3 {[%clk 0:01:47.8]} 19. Nxc3 {[%clk 0:01:52.8]} 19... Nxf4
{[%clk 0:01:46.5]} 20. Rxf4 {[%clk 0:01:51.9]} 20... Ne5 {[%clk 0:01:46]} 21.
bxc5 {[%clk 0:01:47.9]} 21... dxc5 {[%clk 0:01:45.9]} 22. Qg1 {[%clk 0:01:38.5]}
22... Rg8 {[%clk 0:01:40.4]} 23. Rbf1 {[%clk 0:00:52]} 23... Qg5 {[%clk
0:01:32.6]} 24. h3 {[%clk 0:00:42.5]} 24... Ng6 {[%clk 0:01:30.8]} 25. R4f2
{[%clk 0:00:38.2]} 25... Nh4 {[%clk 0:01:30.8]} 26. Qh2 {[%clk 0:00:36.4]} 26...
Bd7 {[%clk 0:01:20.4]} 27. Bd5 {[%clk 0:00:35.9]} 27... Qe3 {[%clk 0:01:04.3]}
28. Bxg8+ {[%clk 0:00:30.7]} 28... Rxg8 {[%clk 0:01:04.4]} 29. Nd5 {[%clk
0:00:28.5]} 29... Bc6 {[%clk 0:01:00.9]} 30. Qc7+ {[%clk 0:00:18.3]} 30... Rg7
{[%clk 0:01:00.8]} 31. Qh2 {[%clk 0:00:18.1]} 31... b5 {[%clk 0:00:49.9]} 32.
Rg1 {[%clk 0:00:17.7]} 32... Rxg1+ {[%clk 0:00:46.8]} 33. Kxg1 {[%clk
0:00:16.9]} 33... Qg5+ {[%clk 0:00:37.9]} 34. Kh1 {[%clk 0:00:11.6]} 34... bxc4
{[%clk 0:00:34.3]} 35. Qc7+ {[%clk 0:00:11.3]} 35... Kh8 {[%clk 0:00:21.2]} 36.
Qxc6 {[%clk 0:00:11.4]} 36... Qg3 {[%clk 0:00:21.1]} 37. Qf6+ {[%clk 0:00:10.4]}
37... Kh7 {[%clk 0:00:19.4]} 38. Qe7+ {[%clk 0:00:10.5]} 38... Kh8 {[%clk
0:00:19]} 39. Qd8+ {[%clk 0:00:10.5]} 39... Kh7 {[%clk 0:00:18.7]} 40. Qc7+
{[%clk 0:00:11.4]} 40... Qxc7 {[%clk 0:00:18.8]} 41. Nxc7 {[%clk 0:00:12.3]}
41... c3 {[%clk 0:00:19.7]} 42. Rf1 {[%clk 0:00:11.5]} 42... Ng6 {[%clk
0:00:16.2]} 43. Rc1 {[%clk 0:00:12.1]} 43... Nf4 {[%clk 0:00:15.7]} 44. e3
{[%clk 0:00:11.3]} 44... Ne2 {[%clk 0:00:11.7]} 45. Rc2 {[%clk 0:00:11.4]} 45...
Ng3+ {[%clk 0:00:09.8]} 46. Kg2 {[%clk 0:00:11.4]} 46... f4 {[%clk 0:00:10.3]}
47. exf4 {[%clk 0:00:11.2]} 47... Nf5 {[%clk 0:00:11]} 48. Rxc3 {[%clk
0:00:11.4]} 48... Ne3+ {[%clk 0:00:10.4]} 49. Kf3 {[%clk 0:00:11.4]} 49... Nd1
{[%clk 0:00:10.2]} 50. Rxc5 {[%clk 0:00:11.8]} 50... Kg6 {[%clk 0:00:10.9]} 51.
Nd5 {[%clk 0:00:11.6]} 51... Kf7 {[%clk 0:00:10.5]} 52. Ne3 {[%clk 0:00:12.1]}
52... Nb2 {[%clk 0:00:09.5]} 53. Rc7+ {[%clk 0:00:12.6]} 53... Ke6 {[%clk
0:00:08.7]} 54. Rxa7 {[%clk 0:00:13.5]} 54... h5 {[%clk 0:00:09.2]} 55. Ra6+
{[%clk 0:00:13.6]} 55... Ke7 {[%clk 0:00:09.2]} 56. Ke4 {[%clk 0:00:14.5]} 56...
h4 {[%clk 0:00:09.1]} 57. f5 {[%clk 0:00:15.1]} 57... Kd7 {[%clk 0:00:10]} 58.
d4 {[%clk 0:00:13.9]} 58... Kc7 {[%clk 0:00:10.1]} 59. Rh6 {[%clk 0:00:14]}
59... Na4 {[%clk 0:00:09.8]} 60. Rxh4 {[%clk 0:00:14.5]} 60... Nb6 {[%clk
0:00:10.3]} 61. Ke5 {[%clk 0:00:14.7]} 61... Nd7+ {[%clk 0:00:10]} 62. Kf4
{[%clk 0:00:14.9]} 62... Nf6 {[%clk 0:00:10.1]} 63. Rh6 {[%clk 0:00:15.4]} 63...
Ng8 {[%clk 0:00:10.1]} 64. Rg6 {[%clk 0:00:15]} 64... Ne7 {[%clk 0:00:09.4]} 65.
Rg7 {[%clk 0:00:15.6]} 1-0

[Event "Early-Titled-Tuesday-Blitz-April-16-2024"]
[Site "Chess.com"]
[Date "2024.04.16"]
[Round "8"]
[White "Evgeny81"]
[Black "Anton_Demchenko"]
[Result "1-0"]
[WhiteElo "2785"]
[BlackElo "2989"]
[TimeControl "180+1"]
[EndTime "9:32:46 PDT"]
[Termination "Evgeny81 won by resignation"]

1. c4 {[%clk 0:03:00.9]} 1... Nf6 {[%clk 0:03:00.6]} 2. Nc3 {[%clk 0:03:00.6]}
2... d6 {[%clk 0:03:01]} 3. e4 {[%clk 0:03:00.8]} 3... e5 {[%clk 0:02:56.2]} 4.
Nf3 {[%clk 0:02:58.9]} 4... Nc6 {[%clk 0:02:55.4]} 5. Be2 {[%clk 0:02:58.5]}
5... Bg4 {[%clk 0:02:52.3]} 6. d3 {[%clk 0:02:58.7]} 6... g6 {[%clk 0:02:48.7]}
7. Be3 {[%clk 0:02:58.8]} 7... Bg7 {[%clk 0:02:48.5]} 8. Nd2 {[%clk 0:02:54.5]}
8... Bxe2 {[%clk 0:02:45.6]} 9. Qxe2 {[%clk 0:02:55.4]} 9... O-O {[%clk
0:02:45.3]} 10. O-O {[%clk 0:02:55.5]} 10... Nd7 {[%clk 0:02:41.5]} 11. Rab1
{[%clk 0:02:51.6]} 11... f5 {[%clk 0:02:36.2]} 12. f3 {[%clk 0:02:50.8]} 12...
Nd4 {[%clk 0:02:35.7]} 13. Qd1 {[%clk 0:02:46]} 13... a5 {[%clk 0:02:31.4]} 14.
Ne2 {[%clk 0:02:40.7]} 14... Ne6 {[%clk 0:02:27]} 15. exf5 {[%clk 0:02:32.1]}
15... gxf5 {[%clk 0:02:27]} 16. f4 {[%clk 0:02:32.6]} 16... Ndc5 {[%clk
0:02:11.9]} 17. Nb3 {[%clk 0:02:25.4]} 17... Nxb3 {[%clk 0:01:50.3]} 18. Qxb3
{[%clk 0:02:26.3]} 18... Qc8 {[%clk 0:01:50.8]} 19. c5 {[%clk 0:02:18.7]} 19...
Kh8 {[%clk 0:01:41.7]} 20. cxd6 {[%clk 0:02:02]} 20... cxd6 {[%clk 0:01:42.6]}
21. Rbc1 {[%clk 0:02:02.5]} 21... Qd7 {[%clk 0:01:40.7]} 22. Kh1 {[%clk
0:01:59.1]} 22... Rae8 {[%clk 0:01:33.9]} 23. Qd5 {[%clk 0:01:55.9]} 23... Nd8
{[%clk 0:01:27.4]} 24. Ng3 {[%clk 0:01:53.5]} 24... Nc6 {[%clk 0:01:20.3]} 25.
Nh5 {[%clk 0:01:41.7]} 25... Qf7 {[%clk 0:01:15.1]} 26. Qf3 {[%clk 0:01:35.3]}
26... Nb4 {[%clk 0:01:06.3]} 27. Nxg7 {[%clk 0:01:31.4]} 27... Qxg7 {[%clk
0:01:05.9]} 28. Bd2 {[%clk 0:01:18.1]} 28... Nc6 {[%clk 0:01:04.7]} 29. Bc3
{[%clk 0:01:16.8]} 29... Qg6 {[%clk 0:00:56]} 30. Rce1 {[%clk 0:01:13.2]} 30...
h5 {[%clk 0:00:56.2]} 31. Qd5 {[%clk 0:01:07.3]} 31... Qe6 {[%clk 0:00:52.2]}
32. Qf3 {[%clk 0:01:04.6]} 32... Qg6 {[%clk 0:00:52.8]} 33. Re3 {[%clk
0:00:58.3]} 33... Re6 {[%clk 0:00:37.9]} 34. Qe2 {[%clk 0:00:56.6]} 34... Qg4
{[%clk 0:00:27.1]} 35. Qe1 {[%clk 0:00:43.7]} 35... Qg7 {[%clk 0:00:18.6]} 36.
Qh4 {[%clk 0:00:32.9]} 36... Rg6 {[%clk 0:00:16.2]} 37. Qxh5+ {[%clk 0:00:16.1]}
37... Rh6 {[%clk 0:00:15.1]} 38. Qe2 {[%clk 0:00:15.9]} 38... Qh7 {[%clk
0:00:09.7]} 39. h3 {[%clk 0:00:15.7]} 39... Qg7 {[%clk 0:00:10.2]} 40. fxe5
{[%clk 0:00:15]} 40... dxe5 {[%clk 0:00:10.2]} 41. Rxe5 {[%clk 0:00:13.8]} 41...
Nxe5 {[%clk 0:00:10.6]} 42. Bxe5 {[%clk 0:00:14.5]} 42... Rff6 {[%clk
0:00:11.3]} 43. Rxf5 {[%clk 0:00:13.8]} 43... Rxf5 {[%clk 0:00:05.1]} 44. Bxg7+
{[%clk 0:00:14.7]} 44... Kxg7 {[%clk 0:00:06]} 45. Qg4+ {[%clk 0:00:10.2]} 45...
Kf6 {[%clk 0:00:05.3]} 46. Qd4+ {[%clk 0:00:10.6]} 46... Kg5 {[%clk 0:00:04.7]}
47. Kh2 {[%clk 0:00:06.7]} 47... Rhf6 {[%clk 0:00:04.4]} 48. Qg4+ {[%clk
0:00:06.3]} 48... Kh6 {[%clk 0:00:05.1]} 49. Qg8 {[%clk 0:00:06.6]} 49... b6
{[%clk 0:00:04.3]} 50. Qh8+ {[%clk 0:00:06.6]} 50... Kg6 {[%clk 0:00:04.4]} 51.
Qg8+ {[%clk 0:00:07.2]} 51... Kh6 {[%clk 0:00:04.9]} 52. Qc4 {[%clk 0:00:08]}
52... Kg7 {[%clk 0:00:03.5]} 53. a4 {[%clk 0:00:07.7]} 53... Rf7 {[%clk
0:00:01.9]} 54. b3 {[%clk 0:00:08]} 54... R5f6 {[%clk 0:00:02.6]} 55. Qd4 {[%clk
0:00:08.4]} 55... Kf8 {[%clk 0:00:02.7]} 56. Qe5 {[%clk 0:00:07.3]} 56... Rc6
{[%clk 0:00:02.2]} 57. h4 {[%clk 0:00:06.9]} 57... Rcf6 {[%clk 0:00:01.6]} 58.
g3 {[%clk 0:00:06.7]} 58... Rf2+ {[%clk 0:00:01.6]} 59. Kh3 {[%clk 0:00:07.1]}
59... R2f3 {[%clk 0:00:02.5]} 60. Qh8+ {[%clk 0:00:07.1]} 60... Ke7 {[%clk
0:00:02.9]} 61. Qe5+ {[%clk 0:00:08]} 61... Kd7 {[%clk 0:00:03.6]} 62. Qd5+
{[%clk 0:00:08.4]} 62... Kc7 {[%clk 0:00:04.3]} 63. h5 {[%clk 0:00:08.6]} 63...
R3f5 {[%clk 0:00:04.5]} 64. Qc4+ {[%clk 0:00:06.9]} 64... Kd6 {[%clk 0:00:04.7]}
65. g4 {[%clk 0:00:07.3]} 65... Rf3+ {[%clk 0:00:04.6]} 66. Kh4 {[%clk
0:00:07.8]} 66... R7f4 {[%clk 0:00:05.5]} 67. Qg8 {[%clk 0:00:06.2]} 67... Rxd3
{[%clk 0:00:05.1]} 68. Qd8+ {[%clk 0:00:06.2]} 68... Ke5 {[%clk 0:00:05.7]} 69.
Qxd3 {[%clk 0:00:07.1]} 69... Rd4 {[%clk 0:00:06.3]} 70. Qxd4+ {[%clk
0:00:07.1]} 70... Kxd4 {[%clk 0:00:07.2]} 71. h6 {[%clk 0:00:07.7]} 1-0

[Event "Early-Titled-Tuesday-Blitz-April-16-2024"]
[Site "Chess.com"]
[Date "2024.04.16"]
[Round "8"]
[White "NasirAkylbekov"]
[Black "Acva-Alenok"]
[Result "1-0"]
[WhiteElo "2505"]
[BlackElo "2318"]
[TimeControl "180+1"]
[EndTime "9:33:01 PDT"]
[Termination "NasirAkylbekov won on time"]

1. e4 {[%clk 0:03:00.2]} 1... c6 {[%clk 0:03:00]} 2. d4 {[%clk 0:03:00.4]} 2...
d5 {[%clk 0:03:00.6]} 3. exd5 {[%clk 0:03:01.3]} 3... cxd5 {[%clk 0:03:01.1]} 4.
c4 {[%clk 0:03:02.2]} 4... Nf6 {[%clk 0:03:00.6]} 5. Nc3 {[%clk 0:03:03.1]} 5...
g6 {[%clk 0:03:00.9]} 6. Nf3 {[%clk 0:03:03.5]} 6... Bg7 {[%clk 0:03:01]} 7. Bf4
{[%clk 0:03:04.2]} 7... O-O {[%clk 0:03:00.7]} 8. c5 {[%clk 0:03:05]} 8... Ne4
{[%clk 0:02:56.7]} 9. Bd3 {[%clk 0:03:04.3]} 9... Nxc3 {[%clk 0:02:56.1]} 10.
bxc3 {[%clk 0:03:05.2]} 10... b6 {[%clk 0:02:56.1]} 11. cxb6 {[%clk 0:03:05.9]}
11... axb6 {[%clk 0:02:57]} 12. O-O {[%clk 0:03:05.6]} 12... Ba6 {[%clk
0:02:46.6]} 13. a4 {[%clk 0:03:04.6]} 13... Nc6 {[%clk 0:02:18.8]} 14. Re1
{[%clk 0:03:02.2]} 14... Bxd3 {[%clk 0:01:55.5]} 15. Qxd3 {[%clk 0:03:02.3]}
15... e6 {[%clk 0:01:49.3]} 16. Qb5 {[%clk 0:02:59.7]} 16... Na5 {[%clk
0:01:37.1]} 17. Be5 {[%clk 0:02:59.7]} 17... Nc4 {[%clk 0:01:29.9]} 18. Bxg7
{[%clk 0:02:59.3]} 18... Kxg7 {[%clk 0:01:30.7]} 19. Ne5 {[%clk 0:02:57.5]}
19... Nxe5 {[%clk 0:01:23.9]} 20. Rxe5 {[%clk 0:02:57.8]} 20... Qc7 {[%clk
0:01:19.3]} 21. Re3 {[%clk 0:02:55.1]} 21... Ra5 {[%clk 0:01:18.2]} 22. Qb4
{[%clk 0:02:49.9]} 22... Rfa8 {[%clk 0:01:13.1]} 23. h4 {[%clk 0:02:50.4]} 23...
h5 {[%clk 0:01:12.2]} 24. g3 {[%clk 0:02:45.4]} 24... b5 {[%clk 0:01:08.9]} 25.
Ree1 {[%clk 0:02:29.9]} 25... Rxa4 {[%clk 0:01:02.8]} 26. Rxa4 {[%clk
0:02:29.4]} 26... bxa4 {[%clk 0:01:03.7]} 27. Ra1 {[%clk 0:02:28.2]} 27... Qc4
{[%clk 0:00:58.6]} 28. Qxc4 {[%clk 0:02:08.6]} 28... dxc4 {[%clk 0:00:59.5]} 29.
Kg2 {[%clk 0:02:04.2]} 29... Kf6 {[%clk 0:00:57.6]} 30. f4 {[%clk 0:02:04.6]}
30... Kf5 {[%clk 0:00:49.9]} 31. Kf3 {[%clk 0:02:04.6]} 31... a3 {[%clk
0:00:48.9]} 32. Ra2 {[%clk 0:02:00.4]} 32... Ra5 {[%clk 0:00:47.6]} 33. Ke3
{[%clk 0:01:52.9]} 33... Kg4 {[%clk 0:00:46.6]} 34. Kf2 {[%clk 0:01:51.1]} 34...
Ra6 {[%clk 0:00:40.6]} 35. Kg2 {[%clk 0:01:47.5]} 35... Rb6 {[%clk 0:00:36.8]}
36. Rxa3 {[%clk 0:01:44.5]} 36... Rb2+ {[%clk 0:00:36.9]} 37. Kf1 {[%clk
0:01:45.4]} 37... Kxg3 {[%clk 0:00:28.3]} 38. Ra4 {[%clk 0:01:45.6]} 38... Rf2+
{[%clk 0:00:23.5]} 39. Ke1 {[%clk 0:01:45]} 39... Rxf4 {[%clk 0:00:23.5]} 40.
Rxc4 {[%clk 0:01:45.1]} 40... g5 {[%clk 0:00:21]} 41. Rc5 {[%clk 0:01:36]} 41...
Rf5 {[%clk 0:00:17.9]} 42. Rxf5 {[%clk 0:01:30.6]} 42... exf5 {[%clk 0:00:18.8]}
43. d5 {[%clk 0:01:31.1]} 43... gxh4 {[%clk 0:00:17.9]} 44. d6 {[%clk
0:01:31.8]} 44... h3 {[%clk 0:00:18.8]} 45. d7 {[%clk 0:01:32.7]} 45... h2
{[%clk 0:00:18.9]} 46. d8=Q {[%clk 0:01:33.2]} 46... h1=Q+ {[%clk 0:00:19.8]}
47. Kd2 {[%clk 0:01:33.5]} 47... Qg2+ {[%clk 0:00:17.8]} 48. Kd1 {[%clk
0:01:33.4]} 48... Qf3+ {[%clk 0:00:16.5]} 49. Kc2 {[%clk 0:01:32.9]} 49... Qe4+
{[%clk 0:00:16.5]} 50. Kb2 {[%clk 0:01:33]} 50... Qe2+ {[%clk 0:00:15.3]} 51.
Kb3 {[%clk 0:01:33.2]} 51... Qe6+ {[%clk 0:00:15.3]} 52. c4 {[%clk 0:01:33.3]}
52... Qe3+ {[%clk 0:00:13.4]} 53. Kb4 {[%clk 0:01:33.4]} 53... h4 {[%clk
0:00:13.5]} 54. Qg8+ {[%clk 0:01:30.2]} 54... Kh2 {[%clk 0:00:08.7]} 55. Qxf7
{[%clk 0:01:28.2]} 55... Qe1+ {[%clk 0:00:06.7]} 56. Kb5 {[%clk 0:01:27.3]}
56... Qb1+ {[%clk 0:00:05.9]} 57. Kc6 {[%clk 0:01:26.4]} 57... h3 {[%clk
0:00:06.4]} 58. c5 {[%clk 0:01:24.1]} 58... Kg2 {[%clk 0:00:05.2]} 59. Qg6+
{[%clk 0:01:24.1]} 59... Kf1 {[%clk 0:00:04.9]} 60. Qh5 {[%clk 0:01:21]} 60...
Qe4+ {[%clk 0:00:04.8]} 61. Kb6 {[%clk 0:01:20.8]} 61... Kg2 {[%clk 0:00:04.7]}
62. Qg5+ {[%clk 0:01:18.2]} 62... Qg4 {[%clk 0:00:04.7]} 63. Qd2+ {[%clk
0:01:18.8]} 63... Kg3 {[%clk 0:00:04.7]} 64. Qe1+ {[%clk 0:01:18]} 64... Kf4
{[%clk 0:00:03.9]} 65. Qd2+ {[%clk 0:01:14.5]} 65... Kf3 {[%clk 0:00:04.2]} 66.
c6 {[%clk 0:01:14.1]} 66... Qe4 {[%clk 0:00:03.3]} 67. c7 {[%clk 0:01:11.7]}
67... Qe6+ {[%clk 0:00:03.8]} 68. Ka7 {[%clk 0:01:09]} 68... Qe7 {[%clk
0:00:03.9]} 69. Qc3+ {[%clk 0:01:06.5]} 69... Kg2 {[%clk 0:00:03.5]} 70. Qc2+
{[%clk 0:01:06.6]} 70... Kg3 {[%clk 0:00:03.3]} 71. Qc3+ {[%clk 0:01:01.6]}
71... Kg2 {[%clk 0:00:03.1]} 72. Ka8 {[%clk 0:00:57.6]} 72... h2 {[%clk
0:00:01.4]} 73. Qc2+ {[%clk 0:00:55.9]} 73... Kg3 {[%clk 0:00:01.1]} 74. Qc3+
{[%clk 0:00:40.7]} 1-0